Cogmind - Beta 15 @@@ ROGUE MODE // 2025.08.12 @ 11:44:30 Player: Minty Result: Destroyed by G-50 Soldier with Heavy Laser Performance ------------- Evolutions (5) 2500 Regions Visited (15) 3000 Robots Destroyed (137) 685 Value Destroyed (6035) 6035 Prototype IDs (21) 420 Alien Tech Used (0) 0 Bonus (3534) 3534 TOTAL SCORE: 16174 Bonus ------- High Alert Combat Kills 705 Follower Combat Kills 1437 Entered Garrisons 400 Used RIF Installer 1000 Friendly Fire -8 Cogmind --------- Core Integrity 0/1000 Matter 206/300 Energy 114/150 System Corruption 18% Temperature Hot (222) Movement Flying (189) Ox2 Location -5/Factory Parts ------- > --- POWER (2) -------- Micro Fission Core > --- PROPULSION (5) --- VTOL Module VTOL Module VTOL Module > --- UTILITY (7) ------ Enhanced Optical Array Improved Targeting Computer Improved Targeting Computer Experimental Armor Integrity Analyzer Improved Medium Armor Plating Hacking Suite System Shield > --- WEAPON (3) ------- Cooled Plasma Rifle Heavy Machine Gun KE Penetrator > --- INVENTORY (5) ---- Improved Kinecellerator Hacking Suite Compact Ion Cannon Improved Datajack Improved Remote Datajack Peak State ------------ > --- POWER ------------ Fusion Reactor Fusion Reactor > --- PROPULSION ------- Medium Treads Improved Heavy Treads Improved Heavy Treads > --- UTILITY ---------- Experimental Heat Sink Large Storage Unit Enhanced Optical Array Improved Sensor Array Advanced Signal Interpreter Improved Weapon Shielding Remote Shield > --- WEAPON ----------- Cooled Plasma Rifle Cooled Plasma Rifle Cooled Plasma Rifle > --- INVENTORY -------- Reinforced Deuterium Engine Fission Core Relay Coupler [NC] Relay Coupler [NC] Relay Coupler [Swarmer] Relay Coupler [Grunt] Relay Coupler [Grunt] Relay Coupler [Grunt] Relay Coupler [Sentry] Relay Coupler [Sentry] Relay Coupler [Behemoth] Cooled Plasma Rifle Cooled Plasma Rifle Cooled Plasma Rifle Long-range Missile Launcher [Rating: 102] Favorites ----------- Power Reinforced Deuterium Engine Engine Reinforced Deuterium Engine Power Core Light Nuclear Core Reactor Fusion Reactor Propulsion Light Treads Treads Light Treads Leg Carbon-fiber Leg Wheel Wheel Hover Unit Combat Airjet Flight Unit Cooled VTOL Module Utility Hacking Suite Device Improved Cooling System Storage Large Storage Unit Processor Enhanced Optical Array Hackware Hacking Suite Protection Improved Medium Armor Plating Weapon Enhanced Autogun Energy Gun Improved Spread Laser Energy Cannon Compact Ion Cannon Ballistic Gun Enhanced Autogun Ballistic Cannon Flak Cannon Launcher Mini Grenade Launcher Special Weapon Improved Remote Datajack Impact Weapon Heavy Mace Slashing Weapon Axe Piercing Weapon Spear Special Melee Weapon Improved Datajack Build | -11 -10 -9 -9 -8 -8 -8 -7 -6 -6 -6 -6 -6 -5 -5 -5 ------- Run | Yrd Mat Mat Min Mat Gar Mat Fac Fac Was Fac Gar Fac Fac Was Fac Slots Evolved 10 | . . 2 . 2 . . 2 2 . . . . 2 . . Power 1 | . . . . . . . . . . . . . 1 . . Propulsion 3 | . . . . 1 . . . 2 . . . . . . . Utility 5 | . . 1 . 1 . . 2 . . . . . 1 . . Weapon 1 | . . 1 . . . . . . . . . . . . . Parts Attached 169 | . 11 16 6 11 19 4 16 11 . . 23 4 22 3 23 Power 23 | . 1 1 1 2 3 . 3 1 . . 6 . 2 . 3 Engine 11 | . 1 1 1 1 2 . 1 . . . 3 . . . 1 Core 10 | . . . . 1 1 . 2 1 . . 3 . . . 2 Reactor 2 | . . . . . . . . . . . . . 2 . . Propulsion 49 | . 5 5 2 . 8 . 5 3 . . 12 . 4 . 5 Treads 14 | . . . . . 5 . 3 . . . 5 . 1 . . Leg 14 | . 2 2 . . 3 . . . . . 4 . 3 . . Wheel 6 | . 3 2 . . . . . . . . . . . . 1 Hover 4 | . . 1 2 . . . . . . . . . . . 1 Flight 11 | . . . . . . . 2 3 . . 3 . . . 3 Utility 48 | . 3 5 2 2 4 2 3 7 . . 2 2 6 3 7 Device 12 | . . . . 1 2 1 1 1 . . . 2 2 1 1 Storage 4 | . 2 . . 1 . 1 . . . . . . . . . Processor 15 | . . 4 1 . 1 . 1 3 . . . . . 2 3 Hackware 11 | . . 1 . . . . . 3 . . 2 . 3 . 2 Protection 6 | . 1 . 1 . 1 . 1 . . . . . 1 . 1 Artifact . | . . . . . . . . . . . . . . . . Weapon 49 | . 2 5 1 7 4 2 5 . . . 3 2 10 . 8 Energy Gun 13 | . 1 1 . 5 1 . 1 . . . . . 3 . 1 Energy Cannon 1 | . . . . . . . . . . . . . . . 1 Ballistic Gun 17 | . 1 . . 2 1 1 3 . . . . 2 4 . 3 Ballistic Cannon 4 | . . . . . . 1 . . . . . . . . 3 Launcher 3 | . . . 1 . . . 1 . . . . . 1 . . Special Weapon 1 | . . . . . . . . . . . . . 1 . . Impact Weapon 2 | . . . . . . . . . . . 1 . 1 . . Slashing Weapon 4 | . . 3 . . . . . . . . 1 . . . . Piercing Weapon 2 | . . . . . 2 . . . . . . . . . . Special Melee Weapon 2 | . . 1 . . . . . . . . 1 . . . . Unidentified Prototypes 16 | . . 1 . 2 . . 6 1 . . . . 4 1 1 Corrupted Parts 1 | . . . . . . . . . . . . . 1 . . System Corruption 1 | . . . . . . . . . . . . . 1 . . Parts Lost 72 | . 2 14 1 2 14 . 4 . . . 15 . 16 . 4 Power 13 | . . 1 . 1 2 . 2 . . . 4 . 2 . 1 Propulsion 28 | . 1 6 1 . 4 . 1 . . . 8 . 5 . 2 Utility 15 | . . 5 . . 2 . . . . . . . 7 . 1 Weapon 16 | . 1 2 . 1 6 . 1 . . . 3 . 2 . . Highest Loss Streak 13 | . 2 13 2 1 5 . 2 . . . 5 . 12 . 2 To Critical Strikes . | . . . . . . . . . . . . . . . . Average Backups 10 | . 7 6 4 6 6 12 14 13 13 14 13 14 12 4 4 Power 1 | . 1 2 2 1 . 2 2 1 1 1 1 2 1 . . Propulsion . | . 3 1 . . . 1 2 . . . . . . . . Utility 6 | . 2 2 2 2 3 6 5 7 8 8 8 12 8 . . Weapon 2 | . . . . 2 2 1 3 3 3 4 1 . 2 4 2 Tool/Special . | . . . . . . . . . . . . . . . . Unused Backups 46 | . 7 . . 4 . 1 4 1 . . 10 1 11 . 7 Power 6 | . 2 . . . . 1 1 . . . 1 . 1 . . Propulsion . | . . . . . . . . . . . . . . . . Utility 27 | . 3 . . 4 . . 1 1 . . 8 1 8 . 1 Weapon 10 | . 2 . . . . . 2 . . . 1 . 2 . 3 Tool/Special 3 | . . . . . . . . . . . . . . . 3 Average Slot Usage (%) 81 | . 95 70 46 82 79 97 99 78 86 80 85 86 73 29 65 Engine 4 | . 14 7 3 5 6 9 2 . . . 4 6 1 . . Core 2 | . . . . 3 2 . 4 5 6 6 . . 3 . 3 Treads 9 | . . . . . 5 27 22 . . . 13 20 13 . . Leg 4 | . 16 17 4 . 15 . . . . . 3 . . . . Hover 1 | . . . 8 18 2 . . . . . . . . . . Flight 5 | . . . . . . . . 30 33 33 6 . . . 5 Device 6 | . . . . 3 8 16 15 4 . 3 3 10 11 1 2 Storage 5 | . 14 8 . 8 5 9 7 6 6 6 6 6 3 . . Processor 11 | . . 10 2 5 6 9 15 15 20 13 13 13 11 16 26 Hackware 7 | . . . 11 9 3 . . 9 13 13 15 8 4 5 5 Protection 2 | . 12 . 3 5 2 . 6 . . . . . . . 2 Energy Gun 4 | . 7 . . 12 10 2 1 . . . 4 5 7 . 2 Ballistic Gun 8 | . 19 . . 6 3 18 19 . . . 9 13 5 . 7 Slashing Weapon 1 | . . 23 11 1 . . . . . . . . . . . Piercing Weapon 1 | . . . . . 5 . . 2 6 3 . . . . . Peak Build Rating 102 | . 8 20 27 38 33 29 43 61 60 60 74 73 102 36 66 Average Rating 47 | . 7 13 14 32 24 26 39 51 59 53 66 71 76 29 50 On Entrance 34 | 6 6 8 7 27 33 23 29 42 59 60 54 72 72 17 31 Naked Turns . | . . . . . . . . . . . . . . . . Heaviest Build 67 | 11 48 19 14 24 24 42 53 27 27 28 48 49 67 7 40 Greatest Support 178 | 20 26 20 24 24 60 60 60 27 27 27 170 170 178 3 11 Greatest Overweight (x) 6 | . 2 1 . . 2 . . . . 1 6 . 2 2 3 Average Overweight (x) . | . . . . . . . . . . . . . . . 1 Largest Inventory Capacity 20 | . 20 8 5 8 8 15 15 15 15 15 15 15 15 5 5 Average Capacity 12 | . 12 7 5 7 6 14 15 15 15 15 15 15 12 5 5 Most Carried 15 | . 10 8 5 8 8 15 15 15 14 15 15 15 15 5 5 Average Carried 11 | . 7 6 4 6 6 12 14 13 13 14 14 14 12 4 4 Final Capacity 15 | 8 8 5 5 8 8 15 15 15 15 15 15 15 5 5 5 Final Carried 15 | 6 8 5 5 7 8 15 15 13 14 15 15 15 5 5 5 Class Distribution -------------------- 22% | Scavenger-Gunner 16% | Mutant 13% | Commander-Tank 12% | Scavenger-Mutant 9% | Commander-Skirmisher 6% | Scavenger-Tank 5% | Bothacker-Scout 5% | Bothacker-Sprinter 3% | Scavenger-Skirmisher Dominant Class ---------------- Mutant | -10/Materials Mutant | -9/Materials Scavenger-Mutant | -9/Mines Scavenger-Gunner | -8/Materials Scavenger-Mutant | -8/Garrison Scavenger-Gunner | -8/Materials Scavenger-Gunner | -7/Factory Bothacker-Scout | -6/Factory Bothacker-Sprinter | -6/Waste Bothacker-Scout | -6/Factory Commander-Tank | -6/Garrison Commander-Skirmisher | -6/Factory Commander-Skirmisher | -5/Factory Mutant | -5/Waste Scavenger-Gunner | -5/Factory Resources | -11 -10 -9 -9 -8 -8 -8 -7 -6 -6 -6 -6 -6 -5 -5 -5 ----------- Run | Yrd Mat Mat Min Mat Gar Mat Fac Fac Was Fac Gar Fac Fac Was Fac Matter Collected 4463 | 200 145 185 70 161 448 290 588 20 . . 1233 202 453 15 453 Remotely . | . . . . . . . . . . . . . . . . Salvage Created 5771 | . 280 340 99 335 821 461 620 44 . 47 1337 225 626 59 477 Parts 294 | . 12 23 7 12 44 31 36 12 . 7 43 12 23 2 30 Haulers Intercepted 8 | . 1 1 . . . 2 2 . . . . . 1 . 1 Recyclers Shooed 4 | . 1 . . 1 . 1 . . . . . 1 . . . Parts Field Recycled . | . . . . . . . . . . . . . . . . Retrieved Matter . | . . . . . . . . . . . . . . . . Parts Self-Destructed . | . . . . . . . . . . . . . . . . Prevented . | . . . . . . . . . . . . . . . . Kills | -11 -10 -9 -9 -8 -8 -8 -7 -6 -6 -6 -6 -6 -5 -5 -5 ------- Run | Yrd Mat Mat Min Mat Gar Mat Fac Fac Was Fac Gar Fac Fac Was Fac Combat Hostiles Destroyed 103 | . 4 5 . 5 26 10 13 . . . 16 3 12 1 8 Melee 15 | . . 5 . . 6 . . . . . 2 . 1 1 . Guns 62 | . 4 . . 4 8 7 13 . . . 11 3 4 . 8 Cannons 3 | . . . . . . 3 . . . . . . . . . AOE 17 | . . . . 1 11 . . . . . . . 5 . . Classes Destroyed 17 | . 4 3 1 1 1 2 . . . . 2 1 2 . . Worker 5 | . 1 . . . . 1 1 . . . . 1 . . 1 Builder 10 | . 2 1 1 . . . . . . 2 . . 3 . 1 Tunneler 2 | . . . . . . 1 . 1 . . . . . . . Hauler 8 | . 1 1 . . . 2 2 . . . . . 1 . 1 Recycler 2 | . . . 1 1 . . . . . . . . . . . Mechanic 1 | . . . . . . . . . . . . 1 . . . Operator 4 | . . 1 . . . . 1 2 . . . . . . . Watcher 2 | . . . . . . 1 . . . . . . 1 . . Swarmer 24 | . . . . . 8 3 3 . . . 6 . . . 4 Saboteur 1 | . . . . . . . . . . . 1 . . . . Grunt 49 | . 4 3 . 4 11 4 9 . . . 5 1 7 1 . Brawler 5 | . . 1 . . . 1 . . . . 2 . 1 . . Duelist 2 | . . . . . . . . . . . 1 . 1 . . Sentry 13 | . . 1 . . 5 1 1 . . . 1 2 . . 2 Demolisher 1 | . . . . . . . . . . . . . 1 . . Hunter 4 | . . . . 1 2 1 . . . . . . . . . Programmer 4 | . . . . . . . . . . . . . 2 . 2 Best Kill Streak 11 | . 2 4 1 4 9 6 7 2 . 2 5 2 11 1 6 Combat Bots Only 9 | . 2 4 . 3 9 4 5 . . . 5 1 8 1 6 Max Kills in Single Turn 6 | . 1 2 1 1 3 1 1 1 . 1 1 1 6 1 2 Gunslinging 1 | . . . . . . . . . . . . . . . 1 Exploded 3 | . . . . 1 3 . . . . . . . 3 . . Melee 2 | . . 2 . . 1 . . . . . 1 . 1 1 . Uniques/NPCs Destroyed . | . . . . . . . . . . . . . . . . Combat | -11 -10 -9 -9 -8 -8 -8 -7 -6 -6 -6 -6 -6 -5 -5 -5 -------- Run | Yrd Mat Mat Min Mat Gar Mat Fac Fac Was Fac Gar Fac Fac Was Fac Hostile Shots Fired 1024 | . 29 136 3 64 166 51 124 . . 4 189 55 152 . 51 Missed 327 | . 11 40 1 20 58 18 44 . . 3 52 27 41 . 12 Hits 697 | . 18 96 2 44 108 33 80 . . 1 137 28 111 . 39 Melee 15 | . . 6 . . . . . . . . 4 . 5 . . Projectile 682 | . 18 90 2 44 108 33 80 . . 1 133 28 106 . 39 AOE 6 | . . . . . . . . . . . . . 6 . . Critical Strikes 27 | . . 2 . 3 1 . 2 . . . 8 . 10 . 1 Damage Taken 11603 | . 334 1209 23 709 1476 437 885 . . 19 2340 362 3025 . 784 Core 2666 | . 79 377 . 78 377 24 119 . . . 592 10 847 . 163 Absorbed by Shields 79 | . . . . . 38 . . . . . . . 41 . . Reduced by Siege Mode 32 | . . . . . . . . . . . . . 32 . . Redirected to Shielding 101 | . . . . . . . . . . . . . 101 . . Regen/Repaired (Parts) 111 | . . . . 30 . 81 . . . . . . . . . Core Remaining (%) 49 | 100 68 . 5 . . 12 83 . . . . 29 . . . Volleys Fired 376 | . 30 . . 16 54 30 39 . . . 137 15 26 5 24 Largest 3 | . 2 . . 3 3 3 3 . . . 3 3 3 1 3 Hottest 216 | . 70 . . 165 165 87 128 . . . 128 128 216 7 135 Shots Fired 794 | . 57 . . 44 102 89 115 . . . 222 37 65 5 58 Gun 737 | . 57 . . 42 89 60 115 . . . 222 37 58 . 57 Cannon 29 | . . . . . . 29 . . . . . . . . . Launcher 19 | . . . . 2 13 . . . . . . . 4 . . Special 9 | . . . . . . . . . . . . . 3 5 1 Kinetic 549 | . 43 . . 26 13 89 101 . . . 184 30 18 . 45 Thermal 189 | . 14 . . . 64 . 14 . . . 38 7 40 . 12 Explosive 19 | . . . . 2 13 . . . . . . . 4 . . Electromagnetic 28 | . . . . 16 12 . . . . . . . . . . Robot Hit Streak 30 | . 8 . . 7 15 9 12 . . . 30 13 9 10 13 Robot Miss Streak 15 | . 4 . . 4 3 7 15 . . . 6 9 6 1 3 Penetration Max 2 | . . . . . . . . . . . . . 2 . 1 Secondary Targets 11 | . . . . 2 . . 2 . . . 3 . 2 . 2 Max Gunslinging Chain 1 | . . . . 1 . . 1 . . . 1 . 1 . 1 Shots Hit Robots 598 | . 35 16 2 26 82 56 80 3 . 3 160 34 58 5 38 Core Hits 392 | . 15 8 1 14 41 43 52 3 . . 119 35 42 1 18 Critical Kills 3 | . 1 . . . . . 1 . . . . . 1 . . Critical Parts Destroyed 16 | . 4 . . . . . 1 . . . 4 . 6 . 1 Critical Strikes 33 | . 5 1 . . 7 . 2 . . . 10 . 7 . 1 Burn 6 | . . . . . 6 . . . . . . . . . . Destroy 11 | . 5 . . . . . 2 . . . . . 3 . 1 Smash 8 | . . . . . . . . . . . 4 . 4 . . Sever 7 | . . 1 . . . . . . . . 6 . . . . Impale 1 | . . . . . 1 . . . . . . . . . . Melee Attacks 154 | . . 22 2 . 27 . 1 13 1 13 55 . 19 1 . Impact 42 | . . . . . . . . . . . 22 . 19 1 . Slashing 39 | . . 22 2 . . . . . . . 15 . . . . Piercing 71 | . . . . . 27 . 1 13 1 13 16 . . . . Sneak Attacks 12 | . . 4 2 . . . . 1 . 3 . . 1 1 . Combat Hostiles . | . . . . . . . . . . . . . . . . Follow-up Attacks 3 | . . 3 . . . . . . . . . . . . . Damage Inflicted 15268 | . 485 784 140 522 2475 1029 1359 164 . 188 3411 692 2874 125 1020 Guns 8975 | . 473 . . 411 998 585 1341 . . . 2370 681 1103 . 1013 Cannons 434 | . . . . . . 434 . . . . . . . . . Explosions 2347 | . . . . 111 1069 . . . . . . . 1167 . . Melee 3452 | . . 784 140 . 408 . . 164 . 188 1041 . 602 125 . Ramming 60 | . 12 . . . . 10 18 . . . . 11 2 . 7 Kinetic 6427 | . 397 . . 232 124 1019 1129 . . . 2022 523 220 . 761 Thermal 3037 | . 76 . . 59 758 . 212 . . . 348 158 1174 . 252 Explosive 1997 | . . . . 52 1069 . . . . . . . 876 . . Electromagnetic 295 | . . . . 179 116 . . . . . . . . . . Impact 1361 | . . . . . . . . . . . 634 . 602 125 . Slashing 1220 | . . 784 140 . . . . . . . 296 . . . . Piercing 871 | . . . . . 408 . . 164 . 188 111 . . . . Highest Corruption 18 | . . 11 11 . 3 3 2 1 1 1 1 1 9 15 18 Average Corruption 3 | . . 9 11 . 3 3 2 1 1 1 1 1 3 14 15 Corruption Purged . | . . . . . . . . . . . . . . . . Corruption Blocked . | . . . . . . . . . . . . . . . . Effects 77 | . . 6 4 . 12 4 1 2 . 2 10 2 7 11 16 Message Errors 16 | . . 3 1 . 3 . . 1 . . 2 . 1 . 5 Matter Fused 13 | . . 1 . . 1 2 1 1 . . . . 2 3 2 Heat Flow Errors 10 | . . . 2 . . . . . . 2 . 2 . 1 3 Energy Discharges 10 | . . 1 . . 1 . . . . . 4 . 2 . 2 Parts Rejected 2 | . . . . . . . . . . . . . 1 1 . Parts Fused 2 | . . 1 . . . . . . . . 1 . . . . Data Loss (minor) 4 | . . . 1 . 2 . . . . . 1 . . . . Data Loss (major) 3 | . . . . . 1 . . . . . . . 1 . 1 Misfires 4 | . . . . . 1 1 . . . . 1 . . . 1 Alerts 3 | . . . . . 2 . . . . . . . . 1 . Misdirections 5 | . . . . . . . . . . . . . . 5 . Weapon Failures 5 | . . . . . 1 1 . . . . 1 . . . 2 Overload Shots 11 | . . . . . . . . . . . . . 7 . 4 Overflow Damage 842 | . . 40 45 . 44 . . . . 78 155 . 480 . . Projectiles . | . . . . . . . . . . . . . . . . Explosions 237 | . . . . . 15 . . . . . . . 222 . . Melee 605 | . . 40 45 . 29 . . . . 78 155 . 258 . . Knockbacks 9 | . . . . . . 3 . . . . 1 . 5 . . Impact 6 | . . . . . . . . . . . 1 . 5 . . Kinetic 3 | . . . . . . 3 . . . . . . . . . Secondary . | . . . . . . . . . . . . . . . . Self-Inflicted Damage 509 | . . . . . 88 . . . . . . . 418 . 3 Shots 11 | . . . . . 5 . . . . . . . 6 . . Rammed 7 | . . . . . . 1 2 . . . . 2 1 . 1 Targets Rammed 9 | . 1 . . . . 1 3 . . . . 2 1 . 1 Kicked 1 | . 1 . . . . . . . . . . . . . . Crushed 1 | . . . . . . . 1 . . . . . . . . Highest Temperature 260 | . 45 3 254 246 57 8 26 . . 206 168 120 177 191 260 Average Temperature 59 | . 17 2 137 114 20 8 8 . . 95 28 30 81 111 76 Received Heat Transfer 3318 | . 129 561 12 414 351 162 267 . . 9 510 93 627 . 183 Effects 4 | . . . 4 . . . . . . . . . . . . Energy Bleed 1 | . . . 1 . . . . . . . . . . . . Interference 3 | . . . 3 . . . . . . . . . . . . Siege Activations 1 | . . . . . . . . . . . . . 1 . . Total Turns 5 | . . . . . . . . . . . . . 5 . . Longest Duration 5 | . . . . . . . . . . . . . 5 . . Martial Activations . | . . . . . . . . . . . . . . . . Shielding Activations . | . . . . . . . . . . . . . . . . Robots Disrupted . | . . . . . . . . . . . . . . . . Combat Hostiles . | . . . . . . . . . . . . . . . . Robots Corrupted 6 | . . . . . . . . . . . 3 . 3 . . Combat Hostiles 5 | . . . . . . . . . . . 3 . 2 . . Parts Fried 2 | . . . . . 1 . . . . . 1 . . . . Impact Corruptions 21 | . . . . . . . . . . . 7 . 14 . . Robots Melted 1 | . . . . . 1 . . . . . . . . . . Combat Hostiles 1 | . . . . . 1 . . . . . . . . . . Parts Melted 10 | . . . . . 5 . 1 . . . . . 4 . . Heat Transferred 4884 | . 222 . . 100 1961 . 175 . . . 300 135 1551 . 440 Parts Sabotaged . | . . . . . . . . . . . . . . . . Parts Stolen . | . . . . . . . . . . . . . . . . Parts Stripped . | . . . . . . . . . . . . . . . . Power Chain Reactions 1 | . . . . 1 . . . . . . . . . . . Alert | -11 -10 -9 -9 -8 -8 -8 -7 -6 -6 -6 -6 -6 -5 -5 -5 ------- Run | Yrd Mat Mat Min Mat Gar Mat Fac Fac Was Fac Gar Fac Fac Was Fac Maximum Alert Level 4 | . . . . 1 3 2 2 1 . . 4 3 3 1 1 Low Security (%) 26 | . 100 100 100 90 10 . . 5 100 100 13 . . . 43 Level 1 27 | . . . . 9 17 31 78 94 . . 27 . . 100 56 Level 2 22 | . . . . . 62 68 21 . . . 29 . 6 . . Level 3 17 | . . . . . 10 . . . . . 5 100 93 . . Level 4 6 | . . . . . . . . . . . 23 . . . . Level 5 . | . . . . . . . . . . . . . . . . High Security . | . . . . . . . . . . . . . . . . Max Security . | . . . . . . . . . . . . . . . . Peak Influence 1368 | . 76 136 65 241 700 619 557 277 69 49 1368 1002 960 347 307 Initial 718 | . . 27 45 23 52 341 276 268 68 34 16 718 490 327 214 Average 447 | . 36 28 45 104 481 470 322 244 60 15 619 821 825 325 220 Influence Increases 6285 | . 206 277 85 328 788 468 627 58 1 64 1542 434 1092 20 295 Destroy 0b10 Robot/C 2860 | . 80 100 . 100 520 280 380 . . . 660 140 420 20 160 Destroy 0b10 Robot/NC 245 | . 20 15 10 5 . 35 25 15 . 10 35 30 30 . 15 Destroy Leader 448 | . 22 32 . 20 20 78 74 . . . 30 54 76 . 42 Allied During Kill 707 | . . . . . . 29 50 . . . 236 193 199 . . Successful Hack 153 | . 21 9 . 16 16 . 5 6 . . 21 . 30 . 29 Select Force Hacks 60 | . . . . 30 . . . . . 30 . . . . . Disable Machine 360 | . . . 30 . . 45 . 15 . 15 15 15 195 . 30 Anti-Garrison Action 450 | . . . . . 50 . . . . . 400 . . . . Destroy Structure 297 | . 3 1 . 22 92 1 3 7 1 9 40 2 112 . 4 Partial Spotted 45 | . . . . . 15 . . . . . . . 15 . 15 Lose Combat Pursuer 660 | . 60 120 45 135 75 . 90 15 . . 105 . 15 . . Influence Decreases 6146 | . 140 227 141 307 169 559 687 411 148 90 197 800 1158 649 463 Entered New Map 3163 | . . 39 71 37 29 359 333 281 128 15 7 650 512 609 93 Time Decay 1683 | . 120 98 40 100 . 180 254 130 20 75 . 130 326 40 170 Lost Part 670 | . 20 90 10 20 140 . 40 . . . 150 . 160 . 40 Lost Ally 330 | . . . 20 . . 20 60 . . . 40 20 160 . 10 Purge Threat 300 | . . . . 150 . . . . . . . . . . 150 Squads Dispatched 29 | . 1 3 . 4 . 2 5 3 . 3 . 2 5 . 1 Investigation 15 | . . 2 . 3 . 2 1 2 . 2 . 1 2 . . Extermination 3 | . . . . . . . 1 1 . . . . 1 . . Reinforcement 10 | . 1 1 . 1 . . 3 . . 1 . 1 1 . 1 Assault 1 | . . . . . . . . . . . . . 1 . . Garrison . | . . . . . . . . . . . . . . . . Intercept . | . . . . . . . . . . . . . . . . Searches Triggered . | . . . . . . . . . . . . . . . . Construction Impeded 3 | . . . . 1 . . 1 . . 1 . . . . . Haulers Reinforced 3 | . . . . . . . 2 . . . . . 1 . . Active Scanning Responses . | . . . . . . . . . . . . . . . . Cargo Convoy Interrupts . | . . . . . . . . . . . . . . . . Stealth | -11 -10 -9 -9 -8 -8 -8 -7 -6 -6 -6 -6 -6 -5 -5 -5 --------- Run | Yrd Mat Mat Min Mat Gar Mat Fac Fac Was Fac Gar Fac Fac Was Fac Distress Signals 8 | . . 2 2 . . 1 1 . . 1 . 1 . . . Communications Jammed . | . . . . . . . . . . . . . . . . Distress Signals . | . . . . . . . . . . . . . . . . Times Spotted 260 | . 11 22 17 21 29 19 29 3 6 9 40 13 20 6 15 Peak Tracking Total 21 | . 4 10 21 9 8 6 7 2 6 7 7 3 10 3 4 Tactical Retreats 27 | . 4 2 2 3 4 . 4 1 . . 6 . 1 . . Traps | -11 -10 -9 -9 -8 -8 -8 -7 -6 -6 -6 -6 -6 -5 -5 -5 ------- Run | Yrd Mat Mat Min Mat Gar Mat Fac Fac Was Fac Gar Fac Fac Was Fac Traps Triggered 8 | . 1 . . . 2 . . 1 . 2 1 . 1 . . Indirectly . | . . . . . . . . . . . . . . . . Trap Hack Attempts . | . . . . . . . . . . . . . . . . Triggered . | . . . . . . . . . . . . . . . . Disarmed . | . . . . . . . . . . . . . . . . Reprogrammed . | . . . . . . . . . . . . . . . . Reused . | . . . . . . . . . . . . . . . . Traps Extracted . | . . . . . . . . . . . . . . . . Installed . | . . . . . . . . . . . . . . . . Triggered . | . . . . . . . . . . . . . . . . Machines | -11 -10 -9 -9 -8 -8 -8 -7 -6 -6 -6 -6 -6 -5 -5 -5 ---------- Run | Yrd Mat Mat Min Mat Gar Mat Fac Fac Was Fac Gar Fac Fac Was Fac Machines Disabled 30 | . . . 2 . 1 3 . 1 . 1 6 1 13 . 2 Max in Single Turn 9 | . . . . . 1 1 . 1 . 1 1 . 9 . 1 Garrison Relay 6 | . . . . . 1 . . . . . 5 . . . . Machines Repaired . | . . . . . . . . . . . . . . . . Machines Dismantled . | . . . . . . . . . . . . . . . . Machines Sabotaged . | . . . . . . . . . . . . . . . . Overloaded Fab Kills . | . . . . . . . . . . . . . . . . Hacking | -11 -10 -9 -9 -8 -8 -8 -7 -6 -6 -6 -6 -6 -5 -5 -5 --------- Run | Yrd Mat Mat Min Mat Gar Mat Fac Fac Was Fac Gar Fac Fac Was Fac Machines Accessed 42 | . 5 2 . 7 2 2 3 5 . 5 3 2 4 . 2 Terminals 29 | . 5 2 . 3 2 1 2 3 . 2 3 1 3 . 2 Fabricators 4 | . . . . . . . 1 1 . 1 . . 1 . . Repair Stations 3 | . . . . 1 . 1 . . . . . 1 . . . Recycling Units 2 | . . . . 1 . . . 1 . . . . . . . Scanalyzers 2 | . . . . 1 . . . . . 1 . . . . . Garrison Access 2 | . . . . 1 . . . . . 1 . . . . . Total Hacks 127 | . 15 12 . 21 4 5 8 19 . 7 8 5 8 . 15 Successful 63 | . 7 4 . 16 2 1 4 8 . 4 3 1 4 . 9 Failed 64 | . 8 8 . 5 2 4 4 11 . 3 5 4 4 . 6 Catastrophic 12 | . 1 1 . 1 . 2 . 4 . . . . 3 . . Database Lockouts . | . . . . . . . . . . . . . . . . Manual 43 | . 2 6 . 6 . 1 6 6 . 1 2 3 . . 10 Terminals 99 | . 15 12 . 10 4 4 6 13 . 4 8 2 6 . 15 Fabricators 7 | . . . . . . . 2 2 . 1 . . 2 . . Repair Stations 5 | . . . . 1 . 1 . . . . . 3 . . . Recycling Units 7 | . . . . 3 . . . 4 . . . . . . . Scanalyzers 7 | . . . . 6 . . . . . 1 . . . . . Garrison Access 2 | . . . . 1 . . . . . 1 . . . . . Terminal Hacks 35 | . 7 3 . 4 2 . 1 4 . 1 3 1 2 . 7 Part Schematic 1 | . . . . . . . 1 . . . . . . . . Robot Analysis 2 | . 2 . . . . . . . . . . . . . . Prototype ID Bank 2 | . 1 . . . . . . 1 . . . . . . . Open Door 2 | . . . . . 1 . . . . . 1 . . . . Open DSF 1 | . . . . . . . . . . 1 . . . . . Level Access Points 2 | . . . . . . . . . . . . . 1 . 1 Emergency Access Points 2 | . . . . 1 . . . . . . 1 . . . . Terminal Index 2 | . 1 . . . . . . . . . . . . . 1 Repair Station Index 1 | . . . . . . . . . . . . . . . 1 Recycling Unit Index 1 | . . 1 . . . . . . . . . . . . . Alert Level 1 | . . . . . . . . . . . . . . . 1 Unreport Threat 2 | . . . . 1 . . . . . . . . . . 1 Locate Traps 2 | . 1 1 . . . . . . . . . . . . . Dispatch Records 1 | . . . . . . . . 1 . . . . . . . Maintenance Status 1 | . 1 . . . . . . . . . . . . . . Security Status 2 | . . . . 1 . . . . . . . . . . 1 Patrol Status 2 | . . . . 1 . . . . . . . . 1 . . Recall Investigation 1 | . . . . . . . . 1 . . . . . . . Hauler Manifests 1 | . . 1 . . . . . . . . . . . . . Registered Components 2 | . 1 . . . . . . 1 . . . . . . . Zone Layout 2 | . . . . . . . . . . . . 1 . . 1 Garrison Registry 1 | . . . . . . . . . . . 1 . . . . Security Stations 1 | . . . . . 1 . . . . . . . . . . Fabricator Hacks 6 | . . . . . . . 1 2 . 1 . . 2 . . Network Status 2 | . . . . . . . 1 . . 1 . . . . . Load Schematic 2 | . . . . . . . . 1 . . . . 1 . . Build 2 | . . . . . . . . 1 . . . . 1 . . Repair Station Hacks . | . . . . . . . . . . . . . . . . Recycling Unit Hacks 3 | . . . . 2 . . . 1 . . . . . . . Report Inventory 2 | . . . . 1 . . . 1 . . . . . . . Retrieve Components 1 | . . . . 1 . . . . . . . . . . . Scanalyzer 5 | . . . . 5 . . . . . . . . . . . Insert Component 2 | . . . . 2 . . . . . . . . . . . Analyze 3 | . . . . 3 . . . . . . . . . . . Garrison Access Hacks 2 | . . . . 1 . . . . . 1 . . . . . Unlock Access 2 | . . . . 1 . . . . . 1 . . . . . Unauthorized Hacks 12 | . . 1 . 4 . 1 2 1 . 1 . . . . 2 Terminals 7 | . . 1 . 2 . . 1 1 . . . . . . 2 Assimilate 1 | . . 1 . . . . . . . . . . . . . Botnet 6 | . . . . 2 . . 1 1 . . . . . . 2 Fabricators 1 | . . . . . . . 1 . . . . . . . . Liberate 1 | . . . . . . . 1 . . . . . . . . Repair Stations 2 | . . . . 1 . 1 . . . . . . . . . Patch 2 | . . . . 1 . 1 . . . . . . . . . Recycling Units . | . . . . . . . . . . . . . . . . Scanalyzers 2 | . . . . 1 . . . . . 1 . . . . . Extract 2 | . . . . 1 . . . . . 1 . . . . . Garrison Access . | . . . . . . . . . . . . . . . . Data Cores Recovered 3 | . . . . . . . 1 2 . . . . . . . Used 2 | . . . . . . . . 2 . . . . . . . Hacking Detections 36 | . 5 2 . 5 2 1 3 5 . 3 2 2 4 . 2 Full Trace Events 11 | . . 1 . 1 . 1 1 2 . 1 1 1 2 . . Feedback Events 2 | . . 1 . . . . . 1 . . . . . . . Corruption 2 | . . 1 . . . . . 1 . . . . . . . Feedback Blocked . | . . . . . . . . . . . . . . . . Robot Schematics Acquired . | . . . . . . . . . . . . . . . . Robots Built . | . . . . . . . . . . . . . . . . Authchips . | . . . . . . . . . . . . . . . . Time . | . . . . . . . . . . . . . . . . Total Robot Build Rating . | . . . . . . . . . . . . . . . . Part Schematics Acquired 8 | . . . . 3 . . 1 . . 4 . . . . . Parts Built 2 | . . . . . . . . 1 . . . . 1 . . Authchips . | . . . . . . . . . . . . . . . . Time 190 | . . . . . . . . 95 . . . . 95 . . Total Part Build Rating 10 | . . . . . . . . 5 . . . . 5 . . Parts Repaired . | . . . . . . . . . . . . . . . . Time . | . . . . . . . . . . . . . . . . Parts Recycled . | . . . . . . . . . . . . . . . . Recycled Matter . | . . . . . . . . . . . . . . . . Retrieved Matter . | . . . . . . . . . . . . . . . . Retrieved Components 2 | . . . . 2 . . . . . . . . . . . Parts Scanalyzed 2 | . . . . 2 . . . . . . . . . . . Part Schematics Acquired 2 | . . . . 2 . . . . . . . . . . . Parts Damaged . | . . . . . . . . . . . . . . . . Bothacking | -11 -10 -9 -9 -8 -8 -8 -7 -6 -6 -6 -6 -6 -5 -5 -5 ------------ Run | Yrd Mat Mat Min Mat Gar Mat Fac Fac Was Fac Gar Fac Fac Was Fac Used RIF Installer 2 | . . . . . 1 . . . . . 1 . . . . Hotswap 1 | . . . . . . . . . . . 1 . . . . Robots Hacked 8 | . . . . . . . . . . . 1 . 2 4 1 Non-combat 3 | . . . . . . . . . . . . . 2 . 1 Combat 5 | . . . . . . . . . . . 1 . . 4 . Robot Hacks Applied 8 | . . . . . . . . . . . 1 . 2 4 1 find_chute 1 | . . . . . . . . . . . . . 1 . . ignore_targets 4 | . . . . . . . . . . . . . . 4 . formatsys_low 1 | . . . . . . . . . . . . . . . 1 formatsys_high 2 | . . . . . . . . . . . 1 . 1 . . Relay Couplers Released 31 | . . . . . 5 . 3 . . . 20 . . . 3 Machine Destruction 28 | . . . . . 5 . . . . . 20 . . . 3 Programmers 3 | . . . . . . . 3 . . . . . . . . Attached 5 | . . . . . . . . . . . 2 . 3 . . Fabnet Peak Effective % . | . . . . . . . . . . . . . . . . Robots Rewired 12 | . . . . . . . . . . . 12 . . . . Allies Hacked . | . . . . . . . . . . . . . . . . Hacks Repelled . | . . . . . . . . . . . . . . . . Allies | -11 -10 -9 -9 -8 -8 -8 -7 -6 -6 -6 -6 -6 -5 -5 -5 -------- Run | Yrd Mat Mat Min Mat Gar Mat Fac Fac Was Fac Gar Fac Fac Was Fac Total Allies 22 | . . . 1 . 2 . 3 . . . 14 . 1 . 1 Largest Group 11 | . . . 1 . 2 2 3 . . . 11 11 9 1 1 Highest-Rated Group 388 | . . . 31 . 56 56 48 . . . 388 388 306 64 26 Highest-Rated Ally 64 | . . . 31 . 31 31 16 . . . 51 41 64 64 26 Total Orders . | . . . . . . . . . . . . . . . . Ally Attacks 196 | . . . 5 . . 31 38 . . . 53 31 38 . . Total Damage 5127 | . . . 60 . . 495 456 . . . 1546 1094 1476 . . Kills 49 | . . . . . . 6 7 . . . 17 9 10 . . Allies Corrupted . | . . . . . . . . . . . . . . . . Allies Melted . | . . . . . . . . . . . . . . . . Intel | -11 -10 -9 -9 -8 -8 -8 -7 -6 -6 -6 -6 -6 -5 -5 -5 ------- Run | Yrd Mat Mat Min Mat Gar Mat Fac Fac Was Fac Gar Fac Fac Was Fac Active Infowar (turns) 4544 | . . . . . . 297 544 276 49 239 1681 274 728 99 357 Optics 3671 | . . . . . . . . 244 49 239 1681 274 728 99 357 Sensors 1035 | . . . . . . . . 152 . 140 . 175 559 . 9 Terrain 332 | . . . . . . 297 35 . . . . . . . . Machine Analysis 642 | . . . . . . . 544 98 . . . . . . . Robot Analysis Total 2 | . 2 . . . . . . . . . . . . . . Derelict Logs Recovered . | . . . . . . . . . . . . . . . . Drone Launches . | . . . . . . . . . . . . . . . . Drone Recoveries . | . . . . . . . . . . . . . . . . Exploration | -11 -10 -9 -9 -8 -8 -8 -7 -6 -6 -6 -6 -6 -5 -5 -5 ------------- Run | Yrd Mat Mat Min Mat Gar Mat Fac Fac Was Fac Gar Fac Fac Was Fac Turns Passed 6380 | . 338 264 95 218 851 367 544 276 49 239 1681 274 728 99 357 Spaces Moved 4452 | 1 195 210 127 179 460 167 243 372 190 524 855 132 405 124 268 Core 575 | . . 111 90 . 1 . . . . . 1 . 131 124 117 Treads 1443 | . . . . . 125 167 243 . . . 502 132 274 . . Legs 541 | 1 123 99 . . 236 . . . . . 82 . . . . Wheels 161 | . 72 . . . . . . . . . . . . . 89 Hover 376 | . . . 37 179 98 . . . . . . . . . 62 Flight 1356 | . . . . . . . . 372 190 524 270 . . . . Fastest Speed 17 | 120 105 50 50 77 77 160 160 23 23 23 17 160 50 50 50 Average Speed 92 | 120 115 83 57 77 122 160 160 23 23 23 114 160 131 66 86 Slowest Speed 350 | 120 130 190 80 77 160 160 160 23 23 88 350 160 160 150 200 Overloaded Moves 30 | . . . . . . . . . . . 30 . . . . Propulsion Burnouts . | . . . . . . . . . . . . . . . . Robots Hopped 1 | . . . . . . . . . . 1 . . . . . Potential Cave-ins . | . . . . . . . . . . . . . . . . Cave-ins Triggered 1 | . . . . . 1 . . . . . . . . . . Exploration Rate (%) 32 | 2 44 24 33 23 49 23 7 9 82 17 84 5 14 90 8 Regions Visited 15 Branch Regions 1 Pre-discovered Areas . | . . . . . . . . . . . . . . . . Known Exits Taken 3 | . . . . 1 . . . . . 1 . 1 . . . Unknown Exits Taken 6 | 1 1 1 1 . . 1 1 . . . . . . . . Scrap Searched . | . . . . . . . . . . . . . . . . Spaces Dug 19 | . . 1 . . . . 1 7 1 9 . . . . . Terrain Destroyed 169 | . . 1 . 20 69 . 1 7 1 9 . . 60 . 1 Melee 19 | . . 1 . . . . 1 7 1 9 . . . . . Projectile 2 | . . . . . . . . . . . . . 1 . 1 AOE 147 | . . . . 20 69 . . . . . . . 58 . . Terrain Rammed . | . . . . . . . . . . . . . . . . Walls Destroyed . | . . . . . . . . . . . . . . . . Machines Disabled . | . . . . . . . . . . . . . . . . Actions | -11 -10 -9 -9 -8 -8 -8 -7 -6 -6 -6 -6 -6 -5 -5 -5 --------- Run | Yrd Mat Mat Min Mat Gar Mat Fac Fac Was Fac Gar Fac Fac Was Fac Total 5914 | . 254 260 142 232 611 214 330 550 193 625 1336 170 514 136 347 Wait 323 | . . 3 7 1 14 . . 123 2 34 122 13 4 . . Move 4439 | . 194 209 126 179 459 166 242 372 189 522 854 131 405 123 268 Hop 1 | . . . . . . . . . . 1 . . . . . Pick Up 103 | . 8 5 1 10 6 8 9 4 1 5 23 1 12 1 9 Fast Attach 85 | . 3 7 5 5 12 3 4 5 . . 14 1 8 2 16 Attach 64 | . 3 4 1 4 6 . 5 11 . 6 13 1 5 2 3 Detach 49 | . 3 . . 4 2 2 3 13 . 4 6 2 3 2 5 Swap 74 | . 5 7 . 4 7 1 16 1 . . 5 2 17 . 9 Drop 93 | . 7 6 . 9 4 3 8 8 . 4 18 2 13 . 11 Fire 376 | . 30 . . 16 54 30 39 . . . 137 15 26 5 24 Melee 151 | . . 19 2 . 27 . 1 13 1 13 55 . 19 1 . Ram 1 | . . . . . . . . . . . . . . . 1 Kick 1 | . 1 . . . . . . . . . . . . . . Crush 7 | . . . . . . 1 3 . . . . 2 1 . . Escape Stasis 74 | . . . . . 20 . . . . 36 18 . . . . Rewire 73 | . . . . . . . . . . . 71 . 1 . 1 Trap . | . . . . . . . . . . . . . . . . Miscellaneous . | . . . . . . . . . . . . . . . . Route ------- -11/Scrapyard -10/Materials (discovered 3 exits: *Mat x2 / [*Min]) -9/Materials -9/Mines -8/Materials -8/Garrison (discovered 3 exits: *Mat x3) -8/Materials -7/Factory (discovered 2 exits: *Fac x2) -6/Factory -6/Waste -6/Factory -6/Garrison (discovered 3 exits: *Fac x3) -6/Factory (discovered 2 exits: *Fac / *Low) -5/Factory (discovered 4 exits: Fac x4) -5/Waste -5/Factory (discovered 4 exits: Fac x4) History --------- Turn | Location | Event 1 | -11/Scrapyard | Discovered new exit (range 0) 1 | -11/Scrapyard | Entered Materials 54 | -10/Materials | Discovered new exit (range 16) 232 | -10/Materials | Discovered new exit (range 7) 315 | -10/Materials | Build established: Mutant 327 | -10/Materials | Discovered new exit (range 10) 339 | -10/Materials | Entered another Materials area 339 | -9/Materials | Evolved 2 slots: Utility x1, Weapon x1 475 | -9/Materials | System corruption reached 10% 515 | -9/Materials | Core integrity fell below 50% 530 | -9/Materials | Core integrity fell below 20% 564 | -9/Materials | Lost 13 parts (1p5n5u2w) 597 | -9/Materials | Discovered new exit (range 6) 603 | -9/Materials | Entered Mines 606 | -9/Mines | Received a Mining Laser from a helpful Derelict 618 | -9/Mines | Assembled infested the area 623 | -9/Mines | Assisted by a Guerilla fighting off Assembled 689 | -9/Mines | Discovered new exit (range 10) 698 | -9/Mines | Entered Materials 698 | -8/Materials | Evolved 2 slots: Propulsion x1, Utility x1 916 | -8/Materials | Identified exit to Garrison 916 | -8/Materials | Entered Garrison 956 | -8/Garrison | Triggered checkpoint 984 | -8/Garrison | Triggered checkpoint 992 | -8/Garrison | Triggered checkpoint 1036 | -8/Garrison | Lost 4 parts (1n3w) 1043 | -8/Garrison | Installed Relay Interface Framework 1046 | -8/Garrison | Destroyed 9 combat bots 1071 | -8/Garrison | Core integrity fell below 50% 1094 | -8/Garrison | Crushed by falling debris 1125 | -8/Garrison | Lost 3 parts (1p1n1w) 1138 | -8/Garrison | Discovered new exit (range 8) 1146 | -8/Garrison | Triggered checkpoint 1186 | -8/Garrison | Discovered new exit (range 6) 1234 | -8/Garrison | Spotted B-75 Beast 1234 | -8/Garrison | Spotted B-75 Beast 1355 | -8/Garrison | Discovered new exit (range 13) 1395 | -8/Garrison | Build established: Scavenger-Mutant 1447 | -8/Garrison | Triggered checkpoint 1528 | -8/Garrison | Core integrity fell below 20% 1534 | -8/Garrison | Learned Materials security intel 1568 | -8/Garrison | Lost 5 parts (2n2u1w) 1572 | -8/Garrison | Rescued a captive Derelict 1574 | -8/Garrison | Rescued a captive Derelict 1591 | -8/Garrison | Garrison Relay disabled 1767 | -8/Garrison | Entered Materials 1767 | -8/Materials | Accompanied by 2 allies 1962 | -8/Materials | Build established: Scavenger-Gunner 2041 | -8/Materials | Discovered new exit (range 15) 2134 | -8/Materials | Entered Factory 2134 | -7/Factory | Evolved 2 slots: Utility x2 2274 | -7/Factory | Discovered new exit (range 14) 2507 | -7/Factory | Discovered new exit (range 15) 2678 | -7/Factory | Entered another Factory area 2678 | -6/Factory | Evolved 2 slots: Propulsion x2 2745 | -6/Factory | Discovered new exit (range 10) 2847 | -6/Factory | Fabricated Lrn. Missile Launcher? 2934 | -6/Factory | Identified exit to Lower Caves 2945 | -6/Factory | Found Prototype Processor 2945 | -6/Factory | Identified Exp. Targeting Computer 2954 | -6/Factory | Manually triggered Chute Trap 2954 | -6/Factory | Sucked down chute 2954 | -6/Factory | Entered Waste 2961 | -6/Waste | Spotted C-40 Crusher 2962 | -6/Waste | Spotted C-40 Crusher 2982 | -6/Waste | Spotted C-40 Crusher 2983 | -6/Waste | Spotted C-40 Crusher 2990 | -6/Waste | Spotted C-40 Crusher 2990 | -6/Waste | Spotted C-40 Crusher 2997 | -6/Waste | Discovered new exit (range 10) 3003 | -6/Waste | Identified exit to Factory 3003 | -6/Waste | Entered Factory 3242 | -6/Factory | Identified exit to Garrison 3242 | -6/Factory | Entered Garrison 3253 | -6/Garrison | Garrison Relay disabled 3268 | -6/Garrison | Triggered checkpoint 3302 | -6/Garrison | Triggered checkpoint 3398 | -6/Garrison | Core integrity fell below 50% 3413 | -6/Garrison | Lost 3 parts (1p2w) 3456 | -6/Garrison | Discovered new exit (range 49) 3456 | -6/Garrison | Discovered new exit (range 18) 3456 | -6/Garrison | Discovered new exit (range 55) 3468 | -6/Garrison | Triggered checkpoint 3471 | -6/Garrison | Rescued a captive Derelict 3561 | -6/Garrison | Lost 5 parts (1p3n1w) 3636 | -6/Garrison | Lost 5 parts (1p4n) 3659 | -6/Garrison | Garrison Relay disabled 4002 | -6/Garrison | Triggered checkpoint 4140 | -6/Garrison | Build established: Scavenger-Tank 4296 | -6/Garrison | Triggered checkpoint 4349 | -6/Garrison | Garrison Relay disabled 4470 | -6/Garrison | Triggered checkpoint 4528 | -6/Garrison | Build established: Commander-Tank 4530 | -6/Garrison | Triggered checkpoint 4543 | -6/Garrison | Garrison Relay disabled 4652 | -6/Garrison | Expanded RIF knowledge: Hotswap 4710 | -6/Garrison | Triggered checkpoint 4738 | -6/Garrison | Triggered checkpoint 4829 | -6/Garrison | Garrison Relay disabled 4895 | -6/Garrison | Identified exit to Factory 4923 | -6/Garrison | Entered Factory 4923 | -6/Factory | Accompanied by 11 allies 4923 | -6/Factory | Discovered exit to Lower Caves (range 8) 5148 | -6/Factory | Discovered new exit (range 19) 5186 | -6/Factory | Identified exit to Factory 5197 | -6/Factory | Entered another Factory area 5197 | -5/Factory | Accompanied by 9 allies 5197 | -5/Factory | Evolved 2 slots: Power x1, Utility x1 5324 | -5/Factory | Build established: Commander-Skirmisher 5466 | -5/Factory | Fabricated Lrn. Missile Launcher? 5497 | -5/Factory | First assault squad dispatched 5540 | -5/Factory | Identified exit to Factory 5589 | -5/Factory | P-70 Sage assimilated allied Gladiator 5c 5766 | -5/Factory | Lost 8 allies 5782 | -5/Factory | Core integrity fell below 50% 5794 | -5/Factory | Destroyed 8 combat bots 5828 | -5/Factory | Lost 12 parts (2p3n5u2w) 5843 | -5/Factory | Core integrity fell below 20% 5867 | -5/Factory | Lost 4 parts (2n2u) 5925 | -5/Factory | Sucked down chute 5925 | -5/Factory | Entered Waste 5928 | -5/Waste | Found Prototype Processor 5928 | -5/Waste | Identified Exp. Armor Integrity Analyzer 5930 | -5/Waste | 1 allies followed down the chute 5940 | -5/Waste | EMP discharged 5940 | -5/Waste | System corruption reached 10% 5943 | -5/Waste | Spotted C-40 Crusher 5943 | -5/Waste | Spotted C-40 Crusher 5943 | -5/Waste | Spotted C-40 Crusher 5954 | -5/Waste | Spotted C-40 Crusher 5960 | -5/Waste | Spotted C-40 Crusher 5963 | -5/Waste | Spotted C-40 Crusher 6018 | -5/Waste | Discovered new exit (range 12) 6024 | -5/Waste | Identified exit to Factory 6024 | -5/Waste | Entered Factory 6054 | -5/Factory | Build established: Mutant 6381 | -5/Factory | Destroyed by G-50 Soldier with Heavy Laser Last Messages --------------- 06348_ K-01 Serf collects debris. 06349_ Acquired Hvy. Machine Gun. 06352_ K-01 Serf collects debris. 06352_ Acquired Hvy. Machine Gun. 06355_ Dropped Hvy. Machine Gun. 06360_ Acquired Imp. Kinecellerator. 06361_ K-01 Serf cleans the Nuclear Reactor. 06362_ Z6UQ4>DIBA2=RI,NBZP&4HV| MXJ3F 06365_ K-01 Serf cleans the Nuclear Reactor. 06366_ Slammed into K-01 Serf. 06370_ Slug penetrates K-01 Serf. 06370_ K-01 Serf destroyed. 06371_ Wheel destroyed. 06373_ Slug penetrates Wall. 06374_ K-01 Serf collects debris. 06377_ Slug penetrates G-50 Soldier. 06378_ 9TK3J%1FD|,KV% WM,T,2 8#KWZGPY/ 06378_ K-01 Serf collects debris. 06379_ Lgt. Nuclear Core destroyed. 06380_ Slug penetrates Wall. Map ----- +----------------------------------------------------+ | ?????????# [ ! #####+####????????????????????????? | | ?????????# ## #????????????????????????? | | ?????????# #????????????????????????? | | ?????????# #????????????????????????? | | ?????????# +????????????????????????? | | ?????????# #????????????????????????? | | ?????????# #????????????????????????? | | ????????"####+### #????????????????????????? | | ?????? ###% ###????????????????????????? | | ???? " # #??????????????????????????? | | ???# " # #??????????????????????????? | | ???# * " # #??????????????????????????? | | ???# "## ##?????????????????????????? | | ################## #?????????????????????????? | | !###############???????????? | | = ?????? | | =% *### ?????? | | ?#########+#######[! ! #???? ?????? | | ?????????????????###%###????? ??????? | | ???????????????#####+#####?? u ? ????????? | | ???????????????# !! ]] #?? #????#####????????? | | ???????????????# ]] #? #?????????????????? | | ???????????????# ][ #? k ##;##?????????????? | | ???????????????# # ??????????????? | | ???????????????# """ """ # * g #?????????????????? | | ???????????????# """ """ @ %g #?????????????????? | | ???????????????# """ """ # = g #?????????????????? | | ???????????????# # #?????????????????? | | ???????????????###########? #?????????????????? | | ??????????????????????????? #?????????????????? | | ???????????????????????????? #?????????????????? | | ???????????????????????????? #?????????????????? | | ????????????????????????????? #?????????????????? | | ????????????????????????????? #?????????????????? | | ??????????????????????????????##?????????????????? | | ?????????????????????????????????????????????????? | | ?????????????????????????????????????????????????? | | ?????????????????????????????????????????????????? | | ?????????????????????????????????????????????????? | | ?????????????????????????????????????????????????? | | ?????????????????????????????????????????????????? | | ?????????????????????????????????????????????????? | | ?????????????????????????????????????????????????? | | ?????????????????????????????????????????????????? | | ?????????????????????????????????????????????????? | | ?????????????????????????????????????????????????? | | ?????????????????????????????????????????????????? | | ?????????????????????????????????????????????????? | | ?????????????????????????????????????????????????? | | ?????????????????????????????????????????????????? | +----------------------------------------------------+ Best States ------------- Heat Dissipation 85 Energy Generation 41 Energy Capacity 505 Matter Stores 300 Matter Capacity 300 Sight Range 22 Robot Scan Range 15 Terrain Scan Range 16 Terrain Scan Density 10 Armor Coverage 225 Utility Shielding 33 Weapon Shielding 66 Evasion (%) 65 Targeting Accuracy 12 Melee Accuracy 10 Launcher Accuracy 20 Armor Integrity Analysis 50 Recoil Reduction 5 Matter Filtering 30 Particle Charging 15 Offensive Hacking 20 Defensive Hacking 10 Relay Coupler Types 2 Relay Coupler Value 60 Item Schematics ----------------- Utility Shielding | -8/Materials | Scanalyzed Hcp. Storage Unit | -8/Materials | Scanalyzed Imp. Sensor Array | -8/Materials | Extracted Lrn. Missile Launcher | -7/Factory | Hacked Shield Generator | -6/Factory | Extracted Imp. Airjet | -6/Factory | Extracted Imp. Heavy Armor Plating | -6/Factory | Extracted Imp. Particle Charger | -6/Factory | Extracted Robot Schematics ------------------ None Fabricated ------------ Lrn. Missile Launcher | x1 | -6/Factory Lrn. Missile Launcher | x1 | -5/Factory Repaired ---------- Nothing Alien Tech Used ----------------- None Achievements -------------- None Challenges ------------ None Game ------ Seed ProtonFieldShield Manual? 0 Play Time 00:57:44 Cumulative 1164.3 hours Start 2025.08.09 @ 13:47:06 End 2025.08.12 @ 11:44:30 Sessions 7 Manual Loads 0 Difficulty Rogue Special Mode None Game No. 1433 Rogue 1149 Adventurer 124 Explorer 160 Win Type - Total 53 Types 39/0/8/4/1/0/0/1/0/0 Lore% 92 Gallery% 88 Achievement% 81 Wizard Run 0 Options --------- Layout 0 ASCII 0 Keyboard 1 Movement Numpad Keybinds 0 Fullscreen 2 Font 18/X11 Map View 76x50 Zoom Use 0% Tactical HUD 1 Map Filters NONE Filters NONE Steam 1 RUN: 34591f15-f9af-44fe-8459-4735f7b870dd